[Event "*** Titled Tuesday Blitz"]
[Site "Chess.com"]
[Date "2021.03.02"]
[Round "2"]
[White "FredyMatsuura"]
[Black "SlavenPastar"]
[Result "1-0"]
[WhiteElo "2334"]
[BlackElo "2588"]
[TimeControl "180+1"]
[EndTime "10:17:55 PST"]
[Termination "FredyMatsuura won on time"]

1. d4 {[%clk 0:03:00.9]} 1... b6 {[%clk 0:02:59.6]} 2. e4 {[%clk 0:03:00.1]}
2... Bb7 {[%clk 0:02:59.7]} 3. Bd3 {[%clk 0:02:59.8]} 3... Nf6 {[%clk
0:03:00.1]} 4. Nc3 {[%clk 0:02:57.2]} 4... e6 {[%clk 0:03:00.2]} 5. a3 {[%clk
0:02:56.4]} 5... d5 {[%clk 0:02:56.2]} 6. e5 {[%clk 0:02:55.9]} 6... Ng8 {[%clk
0:02:56.6]} 7. f4 {[%clk 0:02:49.5]} 7... c5 {[%clk 0:02:53.4]} 8. Nf3 {[%clk
0:02:47.3]} 8... Nc6 {[%clk 0:02:49]} 9. O-O {[%clk 0:02:42.4]} 9... c4 {[%clk
0:02:47.9]} 10. Be2 {[%clk 0:02:40.4]} 10... g6 {[%clk 0:02:42.9]} 11. Be3
{[%clk 0:02:34.1]} 11... Nh6 {[%clk 0:02:42.2]} 12. h3 {[%clk 0:02:31.1]} 12...
Nf5 {[%clk 0:02:41.2]} 13. Bf2 {[%clk 0:02:30.2]} 13... h5 {[%clk 0:02:40.8]}
14. g4 {[%clk 0:02:28.6]} 14... hxg4 {[%clk 0:02:28.1]} 15. hxg4 {[%clk
0:02:28.5]} 15... Ng7 {[%clk 0:02:28.5]} 16. Kg2 {[%clk 0:02:22.5]} 16... Be7
{[%clk 0:02:26]} 17. Rh1 {[%clk 0:02:20.3]} 17... Kd7 {[%clk 0:02:26.4]} 18. Qd2
{[%clk 0:02:17.1]} 18... a6 {[%clk 0:02:18.3]} 19. b3 {[%clk 0:02:16.5]} 19...
b5 {[%clk 0:02:17.2]} 20. bxc4 {[%clk 0:02:16.4]} 20... bxc4 {[%clk 0:02:14.8]}
21. Rab1 {[%clk 0:02:16.1]} 21... Rxh1 {[%clk 0:02:00]} 22. Kxh1 {[%clk
0:02:14]} 22... Rb8 {[%clk 0:01:52.2]} 23. Na4 {[%clk 0:02:08.8]} 23... Qa5
{[%clk 0:01:41.8]} 24. Qxa5 {[%clk 0:01:54]} 24... Nxa5 {[%clk 0:01:42.7]} 25.
Nc5+ {[%clk 0:01:41.7]} 25... Bxc5 {[%clk 0:01:02.6]} 26. dxc5 {[%clk
0:01:41.7]} 26... Nc6 {[%clk 0:01:01.5]} 27. Kg1 {[%clk 0:01:29.1]} 27... Ba8
{[%clk 0:00:57.1]} 28. Rb6 {[%clk 0:01:19.7]} 28... a5 {[%clk 0:00:43.4]} 29.
Ng5 {[%clk 0:01:14.6]} 29... Ke7 {[%clk 0:00:37.3]} 30. c3 {[%clk 0:01:12.3]}
30... Ne8 {[%clk 0:00:34.3]} 31. Bd1 {[%clk 0:01:07.8]} 31... Nc7 {[%clk
0:00:30.9]} 32. Ba4 {[%clk 0:01:05.1]} 32... Rxb6 {[%clk 0:00:29.5]} 33. cxb6
{[%clk 0:01:05.2]} 33... Na6 {[%clk 0:00:28.3]} 34. Bb5 {[%clk 0:01:01.4]} 34...
Bb7 {[%clk 0:00:28.4]} 35. Bh4 {[%clk 0:00:55.4]} 35... Kf8 {[%clk 0:00:25.2]}
36. Nh7+ {[%clk 0:00:50.3]} 36... Kg7 {[%clk 0:00:24.3]} 37. Nf6 {[%clk
0:00:49.4]} 37... Nc5 {[%clk 0:00:17.6]} 38. Ne8+ {[%clk 0:00:48.4]} 38... Kf8
{[%clk 0:00:14.3]} 39. Nd6 {[%clk 0:00:48.4]} 39... Ba8 {[%clk 0:00:14.4]} 40.
Bf2 {[%clk 0:00:46.6]} 40... Nd3 {[%clk 0:00:10.4]} 41. b7 {[%clk 0:00:42.9]}
41... Bxb7 {[%clk 0:00:10]} 42. Nxb7 {[%clk 0:00:43.5]} 42... Na7 {[%clk
0:00:07.5]} 43. Bxa7 {[%clk 0:00:39.6]} 1-0

[Event "*** Titled Tuesday Blitz"]
[Site "Chess.com"]
[Date "2021.03.02"]
[Round "2"]
[White "vinniethepooh"]
[Black "Matensien"]
[Result "1-0"]
[WhiteElo "2713"]
[BlackElo "2496"]
[TimeControl "180+1"]
[EndTime "10:17:56 PST"]
[Termination "vinniethepooh won by checkmate"]

1. d4 {[%clk 0:03:00.9]} 1... Nf6 {[%clk 0:02:55]} 2. c4 {[%clk 0:03:01.2]} 2...
g6 {[%clk 0:02:52.3]} 3. Nc3 {[%clk 0:03:01.4]} 3... Bg7 {[%clk 0:02:52.4]} 4.
e4 {[%clk 0:03:01.3]} 4... d6 {[%clk 0:02:52.3]} 5. Be2 {[%clk 0:03:01.8]} 5...
O-O {[%clk 0:02:36]} 6. Be3 {[%clk 0:03:01.9]} 6... c5 {[%clk 0:02:32]} 7. dxc5
{[%clk 0:03:01.9]} 7... Qa5 {[%clk 0:02:30.7]} 8. Bd2 {[%clk 0:03:02.2]} 8...
Qxc5 {[%clk 0:02:29.5]} 9. Nf3 {[%clk 0:03:02.7]} 9... Nc6 {[%clk 0:02:24.5]}
10. O-O {[%clk 0:03:03]} 10... Bg4 {[%clk 0:02:17.8]} 11. Be3 {[%clk 0:03:02.9]}
11... Qa5 {[%clk 0:02:16.8]} 12. a3 {[%clk 0:03:03.3]} 12... Rfc8 {[%clk
0:01:52.9]} 13. b4 {[%clk 0:02:49.3]} 13... Qd8 {[%clk 0:01:52.1]} 14. Nd2
{[%clk 0:02:30.4]} 14... Bxe2 {[%clk 0:01:34.5]} 15. Qxe2 {[%clk 0:02:31.3]}
15... Ng4 {[%clk 0:01:20.6]} 16. Qxg4 {[%clk 0:02:10.7]} 16... Bxc3 {[%clk
0:01:18.8]} 17. Rac1 {[%clk 0:01:36.8]} 17... Bb2 {[%clk 0:00:56.7]} 18. Rc2
{[%clk 0:01:34]} 18... Bxa3 {[%clk 0:00:51]} 19. b5 {[%clk 0:01:34.3]} 19... Ne5
{[%clk 0:00:47.9]} 20. Qg3 {[%clk 0:01:33.9]} 20... Bb4 {[%clk 0:00:40.7]} 21.
Rfc1 {[%clk 0:01:13.3]} 21... a6 {[%clk 0:00:27.7]} 22. bxa6 {[%clk 0:00:54.9]}
22... Rxa6 {[%clk 0:00:26.1]} 23. f4 {[%clk 0:00:54.6]} 23... Nd3 {[%clk
0:00:21.2]} 24. Rb1 {[%clk 0:00:51]} 24... Bc5 {[%clk 0:00:08.3]} 25. Rxb7
{[%clk 0:00:48.9]} 25... Ra1+ {[%clk 0:00:07.5]} 26. Nf1 {[%clk 0:00:48.1]}
26... Bxe3+ {[%clk 0:00:03.5]} 27. Qxe3 {[%clk 0:00:49]} 27... Nc5 {[%clk
0:00:03.2]} 28. Rb5 {[%clk 0:00:44.1]} 28... Rca8 {[%clk 0:00:02.5]} 29. Rf2
{[%clk 0:00:40.8]} 29... Ne6 {[%clk 0:00:02.4]} 30. f5 {[%clk 0:00:39.5]} 30...
Nc7 {[%clk 0:00:02.2]} 31. Rb7 {[%clk 0:00:39.5]} 31... Ne8 {[%clk 0:00:01.9]}
32. e5 {[%clk 0:00:32.4]} 32... dxe5 {[%clk 0:00:01.8]} 33. Qxe5 {[%clk
0:00:29.9]} 33... Rxf1+ {[%clk 0:00:02.4]} 34. Rxf1 {[%clk 0:00:29.7]} 34... Nf6
{[%clk 0:00:01.7]} 35. Qxe7 {[%clk 0:00:27.3]} 35... Qd4+ {[%clk 0:00:01.6]} 36.
Kh1 {[%clk 0:00:27.9]} 36... Rf8 {[%clk 0:00:01.6]} 37. fxg6 {[%clk 0:00:26.2]}
37... Ng4 {[%clk 0:00:02.5]} 38. gxf7+ {[%clk 0:00:17.8]} 38... Kh8 {[%clk
0:00:02.6]} 39. Qxf8# {[%clk 0:00:17.7]} 1-0

[Event "*** Titled Tuesday Blitz"]
[Site "Chess.com"]
[Date "2021.03.02"]
[Round "2"]
[White "Pintacara"]
[Black "krzyzan94"]
[Result "0-1"]
[WhiteElo "2489"]
[BlackElo "2710"]
[TimeControl "180+1"]
[EndTime "10:17:57 PST"]
[Termination "krzyzan94 won on time"]

1. d4 {[%clk 0:03:00.9]} 1... Nf6 {[%clk 0:02:58.4]} 2. Bg5 {[%clk 0:02:45.4]}
2... e6 {[%clk 0:02:54.2]} 3. e4 {[%clk 0:02:41.3]} 3... h6 {[%clk 0:02:54.2]}
4. Bxf6 {[%clk 0:02:39.5]} 4... Qxf6 {[%clk 0:02:55.1]} 5. c3 {[%clk 0:02:40]}
5... d6 {[%clk 0:02:53.8]} 6. Bd3 {[%clk 0:02:40.3]} 6... g6 {[%clk 0:02:54.1]}
7. Ne2 {[%clk 0:02:40.4]} 7... Bg7 {[%clk 0:02:54.6]} 8. O-O {[%clk 0:02:40.5]}
8... O-O {[%clk 0:02:53]} 9. f4 {[%clk 0:02:40.2]} 9... Qe7 {[%clk 0:02:48.1]}
10. Nd2 {[%clk 0:02:40.1]} 10... b6 {[%clk 0:02:42.3]} 11. a4 {[%clk 0:02:39.4]}
11... a5 {[%clk 0:02:41.8]} 12. Qe1 {[%clk 0:02:33.2]} 12... Ba6 {[%clk
0:02:40.8]} 13. Qg3 {[%clk 0:02:20.9]} 13... Bxd3 {[%clk 0:02:39.9]} 14. Qxd3
{[%clk 0:02:21.8]} 14... Nd7 {[%clk 0:02:39.7]} 15. f5 {[%clk 0:02:15.8]} 15...
Rae8 {[%clk 0:01:58.1]} 16. fxg6 {[%clk 0:02:10.8]} 16... fxg6 {[%clk 0:01:59]}
17. Nf4 {[%clk 0:02:10.9]} 17... Qg5 {[%clk 0:01:50]} 18. g3 {[%clk 0:01:29.6]}
18... e5 {[%clk 0:01:08.7]} 19. Qc4+ {[%clk 0:01:28]} 19... Kh7 {[%clk
0:01:08.3]} 20. Ne6 {[%clk 0:01:24.7]} 20... Qxd2 {[%clk 0:00:49.4]} 21. Nxf8+
{[%clk 0:01:13.1]} 21... Rxf8 {[%clk 0:00:49.3]} 22. Rxf8 {[%clk 0:01:00.4]}
22... Nxf8 {[%clk 0:00:50.2]} 23. dxe5 {[%clk 0:00:57.6]} 23... dxe5 {[%clk
0:00:45.2]} 24. Rf1 {[%clk 0:00:51]} 24... Nd7 {[%clk 0:00:39.9]} 25. Qxc7
{[%clk 0:00:34.1]} 25... Qe3+ {[%clk 0:00:39.4]} 26. Kg2 {[%clk 0:00:27.7]}
26... Qxe4+ {[%clk 0:00:39.4]} 27. Kg1 {[%clk 0:00:28.2]} 27... Qe3+ {[%clk
0:00:36.1]} 28. Kg2 {[%clk 0:00:28.5]} 28... Qd2+ {[%clk 0:00:35.3]} 29. Rf2
{[%clk 0:00:28]} 29... Qd5+ {[%clk 0:00:35.2]} 30. Kg1 {[%clk 0:00:26.7]} 30...
e4 {[%clk 0:00:35.7]} 31. Re2 {[%clk 0:00:22.3]} 31... Ne5 {[%clk 0:00:31.5]}
32. Qc8 {[%clk 0:00:05.1]} 32... Qd1+ {[%clk 0:00:20.2]} 33. Kf2 {[%clk
0:00:05.1]} 33... Nd3+ {[%clk 0:00:13.5]} 34. Ke3 {[%clk 0:00:04.8]} 34... Nc5
{[%clk 0:00:14.1]} 35. Qg4 {[%clk 0:00:03.4]} 35... h5 {[%clk 0:00:10.4]} 0-1

[Event "*** Titled Tuesday Blitz"]
[Site "Chess.com"]
[Date "2021.03.02"]
[Round "2"]
[White "Karla"]
[Black "GianmarcoVaR"]
[Result "0-1"]
[WhiteElo "2250"]
[BlackElo "2618"]
[TimeControl "180+1"]
[EndTime "10:17:57 PST"]
[Termination "GianmarcoVaR won by resignation"]

1. e4 {[%clk 0:03:00.9]} 1... c5 {[%clk 0:02:49.9]} 2. d4 {[%clk 0:03:01.8]}
2... cxd4 {[%clk 0:02:49.7]} 3. c3 {[%clk 0:03:02]} 3... Nf6 {[%clk 0:02:46.9]}
4. e5 {[%clk 0:03:00.8]} 4... Nd5 {[%clk 0:02:46.7]} 5. cxd4 {[%clk 0:03:01.7]}
5... d6 {[%clk 0:02:45.9]} 6. Bc4 {[%clk 0:02:53.5]} 6... Nb6 {[%clk 0:02:37.8]}
7. Bb3 {[%clk 0:02:52.7]} 7... Nc6 {[%clk 0:02:24.7]} 8. f4 {[%clk 0:02:53.2]}
8... dxe5 {[%clk 0:02:23]} 9. dxe5 {[%clk 0:02:46.8]} 9... Qxd1+ {[%clk
0:02:21.4]} 10. Kxd1 {[%clk 0:02:47.7]} 10... Bg4+ {[%clk 0:02:20.7]} 11. Nf3
{[%clk 0:02:32]} 11... O-O-O+ {[%clk 0:02:13.1]} 12. Ke2 {[%clk 0:02:27.4]}
12... Nd4+ {[%clk 0:02:09.9]} 13. Kf2 {[%clk 0:02:24.5]} 13... Bxf3 {[%clk
0:02:04]} 14. gxf3 {[%clk 0:02:25.4]} 14... e6 {[%clk 0:01:54.8]} 15. Be3 {[%clk
0:02:20.5]} 15... Nf5 {[%clk 0:01:53.4]} 16. Nc3 {[%clk 0:02:16.6]} 16... Nxe3
{[%clk 0:01:47.6]} 17. Kxe3 {[%clk 0:02:15]} 17... a6 {[%clk 0:01:39.5]} 18. f5
{[%clk 0:02:11.3]} 18... Bc5+ {[%clk 0:01:34.4]} 19. Kf4 {[%clk 0:02:07.9]}
19... Rhf8 {[%clk 0:01:26.6]} 20. Rhd1 {[%clk 0:02:03.1]} 20... Bd4 {[%clk
0:01:16.1]} 21. fxe6 {[%clk 0:01:54.9]} 21... fxe6+ {[%clk 0:01:14.9]} 22. Ke4
{[%clk 0:01:55.5]} 22... Bxc3 {[%clk 0:01:08.5]} 23. Rxd8+ {[%clk 0:01:53.8]}
23... Kxd8 {[%clk 0:01:07.8]} 24. bxc3 {[%clk 0:01:45.5]} 24... Ke7 {[%clk
0:01:08.4]} 25. h4 {[%clk 0:01:42.3]} 25... Nd7 {[%clk 0:01:08.3]} 26. f4 {[%clk
0:01:39.1]} 26... Rd8 {[%clk 0:00:57.4]} 27. Ke3 {[%clk 0:01:31.7]} 27... Nc5
{[%clk 0:00:57.5]} 28. Bc2 {[%clk 0:01:25.9]} 28... h6 {[%clk 0:00:50.8]} 29. h5
{[%clk 0:01:20.5]} 29... Nd7 {[%clk 0:00:48.6]} 30. Rg1 {[%clk 0:01:16.1]} 30...
Kf7 {[%clk 0:00:48.9]} 31. Rd1 {[%clk 0:01:10.1]} 31... Ke7 {[%clk 0:00:48.8]}
32. Rg1 {[%clk 0:01:08.2]} 32... Kf8 {[%clk 0:00:18]} 33. Rd1 {[%clk 0:01:07.3]}
33... b6 {[%clk 0:00:15.6]} 34. Bb3 {[%clk 0:01:06.9]} 34... Ke7 {[%clk
0:00:14.4]} 35. Rd6 {[%clk 0:01:04.1]} 35... Nc5 {[%clk 0:00:10.8]} 36. Rxb6
{[%clk 0:01:02.6]} 36... Rd3+ {[%clk 0:00:11.3]} 37. Ke2 {[%clk 0:01:02.2]}
37... Rxc3 {[%clk 0:00:10.7]} 38. Rc6 {[%clk 0:00:58.5]} 38... Kd7 {[%clk
0:00:10.9]} 39. Rb6 {[%clk 0:00:55.8]} 39... a5 {[%clk 0:00:06.8]} 40. Rb5
{[%clk 0:00:55.3]} 40... Kc6 {[%clk 0:00:06.4]} 41. Rxc5+ {[%clk 0:00:50.1]}
41... Kxc5 {[%clk 0:00:06.3]} 42. Bxe6 {[%clk 0:00:50.8]} 42... Kd4 {[%clk
0:00:05.7]} 43. Bb3 {[%clk 0:00:48.5]} 43... Ke4 {[%clk 0:00:04.2]} 44. f5
{[%clk 0:00:49.1]} 44... Kxe5 {[%clk 0:00:04.3]} 45. f6 {[%clk 0:00:48.6]} 45...
Kxf6 {[%clk 0:00:04.4]} 46. Kd2 {[%clk 0:00:49.4]} 46... Rh3 {[%clk 0:00:04.9]}
47. Kc2 {[%clk 0:00:49.4]} 47... Rxh5 {[%clk 0:00:05.3]} 48. Kd2 {[%clk
0:00:49.5]} 48... Re5 {[%clk 0:00:06.2]} 49. Kd1 {[%clk 0:00:49.3]} 49... h5
{[%clk 0:00:07.1]} 50. Bc2 {[%clk 0:00:48.8]} 50... h4 {[%clk 0:00:08]} 51. Bd3
{[%clk 0:00:48.8]} 51... h3 {[%clk 0:00:08.5]} 52. Bf1 {[%clk 0:00:49.4]} 52...
h2 {[%clk 0:00:09.4]} 53. Bg2 {[%clk 0:00:49.9]} 53... Rg5 {[%clk 0:00:10.3]}
54. Bh1 {[%clk 0:00:50.1]} 54... Rg1+ {[%clk 0:00:11.2]} 55. Ke2 {[%clk
0:00:50]} 55... Rxh1 {[%clk 0:00:12.1]} 56. Kf3 {[%clk 0:00:50.6]} 56... Rg1
{[%clk 0:00:13]} 57. Kf2 {[%clk 0:00:50.7]} 57... g5 {[%clk 0:00:13.2]} 0-1

[Event "*** Titled Tuesday Blitz"]
[Site "Chess.com"]
[Date "2021.03.02"]
[Round "2"]
[White "Michaelson_11"]
[Black "Euwe1234"]
[Result "1/2-1/2"]
[WhiteElo "2277"]
[BlackElo "2463"]
[TimeControl "180+1"]
[EndTime "10:17:58 PST"]
[Termination "Game drawn by repetition"]

1. e4 {[%clk 0:03:00.9]} 1... c6 {[%clk 0:02:57.2]} 2. d4 {[%clk 0:02:59.7]}
2... d5 {[%clk 0:02:46.9]} 3. Nd2 {[%clk 0:02:58.5]} 3... dxe4 {[%clk
0:02:46.1]} 4. Nxe4 {[%clk 0:02:59.4]} 4... Bf5 {[%clk 0:02:46.4]} 5. Ng3 {[%clk
0:02:59.4]} 5... Bg6 {[%clk 0:02:47.3]} 6. h4 {[%clk 0:02:59.8]} 6... h6 {[%clk
0:02:47.1]} 7. Nf3 {[%clk 0:03:00.4]} 7... Nd7 {[%clk 0:02:45.5]} 8. h5 {[%clk
0:03:00.7]} 8... Bh7 {[%clk 0:02:44.9]} 9. Bd3 {[%clk 0:03:01.3]} 9... Bxd3
{[%clk 0:02:44.1]} 10. Qxd3 {[%clk 0:03:02.2]} 10... e6 {[%clk 0:02:43.6]} 11.
Bd2 {[%clk 0:02:59]} 11... Ngf6 {[%clk 0:02:40.8]} 12. Ne4 {[%clk 0:02:58.5]}
12... Nxe4 {[%clk 0:02:39.2]} 13. Qxe4 {[%clk 0:02:59.4]} 13... Nf6 {[%clk
0:02:39.6]} 14. Qd3 {[%clk 0:02:59.6]} 14... Be7 {[%clk 0:02:39.1]} 15. O-O-O
{[%clk 0:02:59.1]} 15... O-O {[%clk 0:02:38.3]} 16. g4 {[%clk 0:02:45]} 16...
Nxg4 {[%clk 0:02:27.5]} 17. Qe2 {[%clk 0:02:43]} 17... Qd5 {[%clk 0:02:24]} 18.
c4 {[%clk 0:02:29.4]} 18... Qf5 {[%clk 0:02:21.3]} 19. Rhg1 {[%clk 0:02:06.2]}
19... Kh7 {[%clk 0:02:14.3]} 20. d5 {[%clk 0:01:43.7]} 20... Bc5 {[%clk
0:02:04.1]} 21. Nh4 {[%clk 0:01:34.4]} 21... Qxh5 {[%clk 0:01:48.5]} 22. Rxg4
{[%clk 0:01:17.7]} 22... g5 {[%clk 0:01:18.9]} 23. Rdg1 {[%clk 0:00:55.9]} 23...
f5 {[%clk 0:00:41.2]} 24. Re4 {[%clk 0:00:26]} 24... Qxe2 {[%clk 0:00:37.5]} 25.
Rxe2 {[%clk 0:00:26.9]} 25... gxh4 {[%clk 0:00:19.5]} 26. Rxe6 {[%clk
0:00:26.3]} 26... f4 {[%clk 0:00:19.7]} 27. Rgg6 {[%clk 0:00:25.9]} 27... Rf7
{[%clk 0:00:14.4]} 28. Bc3 {[%clk 0:00:21.8]} 28... Bf8 {[%clk 0:00:12.4]} 29.
d6 {[%clk 0:00:11]} 29... h3 {[%clk 0:00:12]} 30. Rg1 {[%clk 0:00:08.8]} 30...
c5 {[%clk 0:00:11.4]} 31. Be5 {[%clk 0:00:07.5]} 31... Rd8 {[%clk 0:00:10.9]}
32. Rh1 {[%clk 0:00:07.2]} 32... Bg7 {[%clk 0:00:10.7]} 33. Rxh3 {[%clk
0:00:04.3]} 33... Bxe5 {[%clk 0:00:09.3]} 34. Rhxh6+ {[%clk 0:00:04.6]} 34...
Kg7 {[%clk 0:00:09.3]} 35. Rhg6+ {[%clk 0:00:05]} 35... Kh7 {[%clk 0:00:08.3]}
36. Rh6+ {[%clk 0:00:05.3]} 36... Kg7 {[%clk 0:00:06.6]} 37. Rhg6+ {[%clk
0:00:05.4]} 37... Kh7 {[%clk 0:00:07.2]} 38. Rh6+ {[%clk 0:00:05.2]} 1/2-1/2

[Event "*** Titled Tuesday Blitz"]
[Site "Chess.com"]
[Date "2021.03.02"]
[Round "2"]
[White "ChainsOfFantasia"]
[Black "Andrakhanova"]
[Result "1-0"]
[WhiteElo "2462"]
[BlackElo "2251"]
[TimeControl "180+1"]
[EndTime "10:17:58 PST"]
[Termination "ChainsOfFantasia won by resignation"]

1. d4 {[%clk 0:03:00.9]} 1... d5 {[%clk 0:02:59.2]} 2. Nf3 {[%clk 0:02:59.4]}
2... e6 {[%clk 0:02:58.9]} 3. c4 {[%clk 0:02:59.9]} 3... c6 {[%clk 0:02:58.6]}
4. Nc3 {[%clk 0:02:59.4]} 4... dxc4 {[%clk 0:02:58.1]} 5. e3 {[%clk 0:02:53.2]}
5... b5 {[%clk 0:02:54.6]} 6. a4 {[%clk 0:02:52.5]} 6... Bb4 {[%clk 0:02:53.9]}
7. Bd2 {[%clk 0:02:52.8]} 7... a5 {[%clk 0:02:53.6]} 8. axb5 {[%clk 0:02:51.9]}
8... Bxc3 {[%clk 0:02:53.7]} 9. Bxc3 {[%clk 0:02:51.4]} 9... cxb5 {[%clk
0:02:54]} 10. b3 {[%clk 0:02:52]} 10... Bb7 {[%clk 0:02:54.2]} 11. bxc4 {[%clk
0:02:51.7]} 11... b4 {[%clk 0:02:54.6]} 12. Bb2 {[%clk 0:02:52.2]} 12... Nf6
{[%clk 0:02:54.3]} 13. Bd3 {[%clk 0:02:39.3]} 13... Nbd7 {[%clk 0:02:51.5]} 14.
O-O {[%clk 0:02:39.5]} 14... Qc7 {[%clk 0:02:51.7]} 15. Bc2 {[%clk 0:02:13.6]}
15... O-O {[%clk 0:02:46.7]} 16. Nd2 {[%clk 0:02:08.3]} 16... e5 {[%clk
0:02:41]} 17. c5 {[%clk 0:01:40.9]} 17... exd4 {[%clk 0:02:39.1]} 18. exd4
{[%clk 0:01:41.8]} 18... Rfd8 {[%clk 0:02:27.2]} 19. Qe2 {[%clk 0:01:18.7]}
19... g6 {[%clk 0:02:19.6]} 20. Nc4 {[%clk 0:01:17.6]} 20... Re8 {[%clk
0:02:11.5]} 21. Qd2 {[%clk 0:01:15]} 21... Ng4 {[%clk 0:02:07]} 22. Nd6 {[%clk
0:01:11.6]} 22... Re7 {[%clk 0:01:31.2]} 23. Qg5 {[%clk 0:01:05.4]} 23... Ndf6
{[%clk 0:01:20.8]} 24. h3 {[%clk 0:00:40.4]} 24... Qc6 {[%clk 0:00:46.9]} 25.
Nxb7 {[%clk 0:00:38.5]} 25... h6 {[%clk 0:00:38.8]} 26. Qf4 {[%clk 0:00:31.3]}
26... Re2 {[%clk 0:00:23.5]} 27. Rac1 {[%clk 0:00:25.3]} 27... Qxb7 {[%clk
0:00:22.3]} 28. hxg4 {[%clk 0:00:25]} 28... Nd5 {[%clk 0:00:21.4]} 29. Qf3
{[%clk 0:00:23.8]} 29... Rae8 {[%clk 0:00:19.5]} 30. Bb3 {[%clk 0:00:22.3]}
30... Rxb2 {[%clk 0:00:17.7]} 31. Bxd5 {[%clk 0:00:22.4]} 31... Qe7 {[%clk
0:00:17.8]} 32. c6 {[%clk 0:00:22.5]} 32... Rd8 {[%clk 0:00:17.2]} 33. c7 {[%clk
0:00:22.3]} 33... Rc8 {[%clk 0:00:17.6]} 34. Rfe1 {[%clk 0:00:22.6]} 34... Qd7
{[%clk 0:00:17.8]} 35. Re5 {[%clk 0:00:15.3]} 35... Rxc7 {[%clk 0:00:17.6]} 36.
Rce1 {[%clk 0:00:15.2]} 36... Kg7 {[%clk 0:00:16.6]} 37. Re7 {[%clk 0:00:13.7]}
37... Qxe7 {[%clk 0:00:16.2]} 38. Rxe7 {[%clk 0:00:14.6]} 38... Rxe7 {[%clk
0:00:17.1]} 39. Kh2 {[%clk 0:00:13]} 39... Ree2 {[%clk 0:00:15.9]} 40. Qxf7+
{[%clk 0:00:12]} 1-0

[Event "*** Titled Tuesday Blitz"]
[Site "Chess.com"]
[Date "2021.03.02"]
[Round "2"]
[White "FGHSMN"]
[Black "NiranjanNavalgund"]
[Result "1-0"]
[WhiteElo "2672"]
[BlackElo "2432"]
[TimeControl "180+1"]
[EndTime "10:17:59 PST"]
[Termination "FGHSMN won by resignation"]

1. e4 {[%clk 0:03:00.9]} 1... e5 {[%clk 0:02:59.8]} 2. f4 {[%clk 0:02:59.5]}
2... d5 {[%clk 0:02:58.5]} 3. exd5 {[%clk 0:03:00.4]} 3... exf4 {[%clk
0:02:58.3]} 4. Nf3 {[%clk 0:03:00.1]} 4... Nf6 {[%clk 0:02:58.3]} 5. Be2 {[%clk
0:02:56.9]} 5... Nxd5 {[%clk 0:02:56.3]} 6. O-O {[%clk 0:02:51.9]} 6... c5
{[%clk 0:02:52.6]} 7. Kh1 {[%clk 0:02:25]} 7... Be7 {[%clk 0:02:49.7]} 8. c4
{[%clk 0:02:21.7]} 8... Nf6 {[%clk 0:02:45.3]} 9. d4 {[%clk 0:02:20.7]} 9...
cxd4 {[%clk 0:02:45.5]} 10. Nxd4 {[%clk 0:02:18]} 10... O-O {[%clk 0:02:42]} 11.
Bxf4 {[%clk 0:02:13]} 11... Nc6 {[%clk 0:02:38.9]} 12. Nxc6 {[%clk 0:02:10.1]}
12... bxc6 {[%clk 0:02:39.8]} 13. Nc3 {[%clk 0:02:09.6]} 13... Be6 {[%clk
0:02:36.1]} 14. b3 {[%clk 0:02:06.8]} 14... Qa5 {[%clk 0:02:35.8]} 15. Qc2
{[%clk 0:01:57.7]} 15... Rad8 {[%clk 0:02:29.8]} 16. Rad1 {[%clk 0:01:51.9]}
16... Bf5 {[%clk 0:02:27.5]} 17. Bd3 {[%clk 0:01:36.1]} 17... Bxd3 {[%clk
0:02:22.1]} 18. Rxd3 {[%clk 0:01:37]} 18... Qf5 {[%clk 0:02:19.3]} 19. Rd2
{[%clk 0:01:27.5]} 19... Qxc2 {[%clk 0:02:14.7]} 20. Rxc2 {[%clk 0:01:28.4]}
20... Rd3 {[%clk 0:02:12.9]} 21. g3 {[%clk 0:01:04.3]} 21... Rfd8 {[%clk
0:02:05.8]} 22. Kg2 {[%clk 0:01:00]} 22... Bb4 {[%clk 0:01:56.2]} 23. Ne2 {[%clk
0:00:55.8]} 23... Ne4 {[%clk 0:01:53.1]} 24. Bc1 {[%clk 0:00:49.8]} 24... f6
{[%clk 0:01:45.4]} 25. Nf4 {[%clk 0:00:48.2]} 25... Rd1 {[%clk 0:01:40.9]} 26.
Rxd1 {[%clk 0:00:47.8]} 26... Rxd1 {[%clk 0:01:41.8]} 27. Be3 {[%clk 0:00:48.3]}
27... a5 {[%clk 0:01:37]} 28. Re2 {[%clk 0:00:39]} 28... Nc3 {[%clk 0:01:31.6]}
29. Rc2 {[%clk 0:00:36.5]} 29... Ne4 {[%clk 0:01:26.5]} 30. Ne6 {[%clk 0:00:32]}
30... Re1 {[%clk 0:01:18.4]} 31. Kf3 {[%clk 0:00:30.7]} 31... f5 {[%clk
0:01:10]} 32. Nd4 {[%clk 0:00:28.7]} 32... c5 {[%clk 0:00:44.4]} 33. Nxf5 {[%clk
0:00:27.1]} 33... Nf6 {[%clk 0:00:41]} 34. Ne7+ {[%clk 0:00:21.6]} 34... Kf7
{[%clk 0:00:40.5]} 35. Nc6 {[%clk 0:00:22]} 35... Ke6 {[%clk 0:00:35.3]} 36.
Nxb4 {[%clk 0:00:19.4]} 36... cxb4 {[%clk 0:00:36.2]} 37. Bb6 {[%clk 0:00:18.1]}
37... Kf5 {[%clk 0:00:16.9]} 38. Bxa5 {[%clk 0:00:16.9]} 38... g5 {[%clk
0:00:17.2]} 39. Bxb4 {[%clk 0:00:15.9]} 39... g4+ {[%clk 0:00:17.6]} 40. Kg2
{[%clk 0:00:16]} 40... Ra1 {[%clk 0:00:15.7]} 41. Rf2+ {[%clk 0:00:15.4]} 41...
Ke6 {[%clk 0:00:15.6]} 42. Rxf6+ {[%clk 0:00:15.3]} 1-0